bitfinex-derivatives/quotes_SOLF0:USTF0_20250516
["timestamp","ask_amount","ask_price","bid_price","bid_amount"]
[1747420043148,5.8551,170.72,170.66,5.8517]
[1747420043351,60.46,170.76,170.67,2.04884197]
[1747420043646,5.8556,170.71,170.67,5.8566]
[1747420043950,66.3556,170.71,170.67,5.8566]
[1747420044242,60.5,170.71,170.68,5.8564]
[1747420044545,60.5,170.71,170.66,5.93474197]
[1747420044745,60.5,170.71,170.69,5.8558]
[1747420045041,60.5,170.71,170.66,5.93474197]
[1747420045544,60.5,170.71,170.69,5.856]
[1747420045745,60.5,170.71,170.66,5.93474197]
[1747420046244,60.5,170.71,170.69,5.8559]
[1747420046444,60.5,170.71,170.66,5.93474197]
[1747420046845,60.5,170.71,170.69,5.8559]
[1747420047240,60.5,170.71,170.66,5.93157395]
[1747420047646,60.5,170.71,170.69,5.8558]
[1747420048341,60.5,170.71,170.67,5.8564]
[1747420048546,60.5,170.71,170.66,2.0213]
[1747420048948,60.5,170.71,170.68,5.8562]
[1747420050349,60.5,170.71,170.66,2.0213]
[1747420050350,60.5,170.71,170.66,5.857]
[1747420050541,60.5,170.71,170.63,1.8323]
[1747420051052,5.8563,170.69,170.63,1.8323]
[1747420051345,60.5,170.71,170.63,1.8323]
[1747420051650,60.5,170.71,170.63,3.87609971]
[1747420051947,60.34,170.71,170.63,64.21609971]
[1747420052142,60.34,170.71,170.64,2.04379971]
[1747420053144,60.5,170.72,170.64,2.04379971]
[1747420053649,60.52,170.75,170.74,5.8543]
[1747420053849,60.34,170.76,170.68,60.52]
[1747420054050,60.34,170.76,170.69,3.9291]
[1747420054249,60.52,170.78,170.76,5.8537]
[1747420054551,60.32,170.77,170.76,5.8537]
[1747420054748,60.32,170.77,170.69,5.9729303]
[1747420055751,60.32,170.77,170.74,5.8542]
[1747420056548,66.1735,170.77,170.74,5.8542]
[1747420057346,60.32,170.77,170.69,5.9729303]
[1747420057545,60.32,170.77,170.7,2.0438303]
[1747420057854,5.8538,170.76,170.72,5.8548]
[1747420058151,5.8538,170.76,170.69,5.9729303]
[1747420058454,60.52,170.78,170.7,2.04830264]
[1747420058637,120.74,170.78,170.7,2.04830264]
[1747420059036,126.5931,170.78,170.7,2.04830264]
[1747420059245,120.74,170.78,170.7,2.04830264]
[1747420059437,120.74,170.78,170.69,3.9291]
[1747420059638,120.74,170.78,170.75,5.8538]
[1747420060145,60.52,170.78,170.75,5.8538]
[1747420060342,120.72,170.78,170.75,5.8538]
[1747420061151,60.5,170.81,170.7,60.16]
[1747420061346,505.66,170.86,170.71,19.21462859]
[1747420061650,5.8522,170.81,170.72,62.55134655]
[1747420061850,66.0522,170.81,170.73,4.05564655]
[1747420062050,60.2,170.81,170.74,2.05134655]
[1747420062244,60.2,170.81,170.78,5.8527]
[1747420063653,60.5,170.84,170.75,2.05484917]
[1747420063955,60.14,170.85,170.77,60.5]
[1747420064153,60.14,170.85,170.83,5.851]
[1747420064750,60.5,170.87,170.77,60.5]
[1747420064951,60.28,170.86,170.78,2.05500422]
[1747420065150,60.28,170.86,170.77,60.5]
[1747420065151,60.28,170.86,170.79,2.05500422]
[1747420065354,60.28,170.86,170.83,5.8511]
[1747420065857,5.8513,170.83,170.8,5.852]
[1747420066458,5.851,170.84,170.8,5.852]
[1747420066655,60.28,170.86,170.77,60.5]
[1747420066957,5.8507,170.85,170.78,2.05514437]
[1747420067158,5.8507,170.85,170.79,2.05514437]
[1747420067359,60.28,170.86,170.81,5.8517]
[1747420067760,60.28,170.86,170.79,5.8525]
[1747420068152,60.28,170.86,170.76,3.8209]
[1747420068464,60.28,170.86,170.77,2.05741404]
[1747420068647,60.28,170.86,170.76,1.8382]
[1747420068852,60.28,170.86,170.77,2.05933731]
[1747420069054,5.8522,170.81,170.78,5.8528]
[1747420069254,66.0722,170.81,170.76,1.8382]
[1747420069457,66.0722,170.81,170.77,2.05934617]
[1747420069756,66.0722,170.81,170.78,7.91204617]
[1747420069962,60.22,170.81,170.76,1.8382]
[1747420070152,60.22,170.81,170.8,5.8523]
[1747420070460,66.072,170.81,170.76,1.8382]
[1747420070763,66.072,170.81,170.77,2.06142302]
[1747420070962,66.072,170.81,170.78,2.06142302]
[1747420071156,66.072,170.81,170.79,2.06142302]
[1747420071360,66.072,170.81,170.76,1.8382]
[1747420071562,60.22,170.81,170.79,5.8526]
[1747420072254,66.0722,170.81,170.78,5.8529]
[1747420072553,66.0722,170.81,170.79,2.06229545]
[1747420072750,5.853,170.78,170.72,1.9291]
[1747420072955,60.16,170.77,170.74,2.06286947]
[1747420073156,5.855,170.72,170.71,5.41117364]
[1747420073361,5.855,170.72,170.71,7.47463072]
[1747420073565,5.855,170.72,170.71,5.41117364]
[1747420074467,5.8554,170.71,170.68,5.8563]
[1747420074867,60.18,170.73,170.68,5.8563]
[1747420075066,60.18,170.73,170.67,5.8566]
[1747420075364,60.18,170.73,170.63,148.72981694]
[1747420075564,5.8556,170.71,170.63,148.72981694]
[1747420077070,5.8556,170.71,170.67,5.8564]
[1747420077670,5.8556,170.71,170.68,5.8564]
[1747420078473,60.14,170.7,170.61,7.27877364]
[1747420078770,60.12,170.69,170.61,7.27877364]
[1747420079367,60.12,170.69,170.61,5.41117364]
[1747420080074,5.8585,170.62,170.61,5.41117364]
[1747420080378,126.2185,170.62,170.61,5.41117364]
[1747420080762,5.8595,170.59,170.58,7.21489819]
[1747420081371,5.86,170.59,170.49,14.42979638]
[1747420081672,120.38,170.58,170.48,5.863]
[1747420081971,5.8618,170.53,170.44,71.05267868]
[1747420082177,120.46,170.52,170.45,1.17336462]
[1747420082557,126.3219,170.52,170.45,1.17336462]
[1747420082764,126.3219,170.52,170.47,5.8633]
[1747420082973,120.46,170.52,170.45,1.17336462]
[1747420083171,120.46,170.52,170.45,7.03766462]
[1747420083771,5.8629,170.5,170.45,7.03766462]
[1747420084070,120.46,170.52,170.45,1.17336462]
[1747420084277,5.864,170.46,170.45,1.17336462]
[1747420084574,126.364,170.46,170.45,1.17336462]
[1747420085076,120.5,170.46,170.45,1.17336462]
[1747420085675,120.5,170.46,170.45,7.03766462]
[1747420085977,120.5,170.46,170.45,1.17336462]
[1747420086478,120.5,170.46,170.34,60.18]
[1747420086774,120.5,170.46,170.33,65.9391]
[1747420086974,120.5,170.46,170.37,5.8669]
[1747420087175,120.5,170.46,170.33,65.9391]
[1747420088575,120.5,170.46,170.39,5.8661]
[1747420088775,120.5,170.46,170.33,65.9391]
[1747420089678,5.8656,170.42,170.36,5.8673]
[1747420089879,120.6,170.41,170.33,5.7591]
[1747420090170,60.22,170.4,170.33,5.7591]
[1747420090778,60.22,170.4,170.37,5.8668]
[1747420091078,60.22,170.4,170.33,5.7591]
[1747420091374,60.22,170.4,170.36,5.8671]
[1747420091673,60.22,170.4,170.33,1.9142]
[1747420091983,60.22,170.4,170.29,1.8822]
[1747420092280,17.16328204,170.38,170.17,61.26180137]
[1747420092482,60.46,170.37,170.18,5.703]
[1747420092665,60.24,170.36,170.18,5.703]
[1747420092870,120.72,170.35,170.2,17.16328204]
[1747420093077,120.72,170.35,170.21,60.24]
[1747420093782,5.8698,170.29,170.21,60.24]
[1747420094079,120.76,170.28,170.21,60.24]
[1747420094377,60.5,170.28,170.21,60.24]
[1747420094983,60.5,170.28,170.27,5.8705]
[1747420095679,17.16328204,170.42,170.25,60.26]
[1747420095982,120.74,170.4,170.26,1.9528]
[1747420096682,126.6063,170.4,170.26,1.9528]
[1747420096881,120.74,170.4,170.34,5.8678]
[1747420097284,5.8666,170.39,170.34,5.8678]
[1747420097484,120.74,170.4,170.35,5.8677]
[1747420097686,120.86,170.39,170.27,3.8233]
[1747420097872,120.86,170.39,170.29,60.28]
[1747420098077,120.86,170.39,170.37,5.867]
[1747420098279,120.86,170.39,170.29,60.28]
[1747420099789,120.86,170.39,170.35,5.8676]
[1747420100689,120.86,170.39,170.27,3.8233]
[1747420100888,17.16328204,170.38,170.27,3.8233]
[1747420101297,5.8683,170.34,170.29,5.8696]
[1747420101594,120.84,170.33,170.29,5.8696]
[1747420101991,120.84,170.33,170.3,5.8694]
[1747420102497,5.869,170.32,170.28,5.8701]
[1747420102697,120.84,170.33,170.27,3.8233]
[1747420102894,126.7088,170.33,170.29,5.8698]
[1747420103099,120.84,170.33,170.27,3.8233]
[1747420103302,120.84,170.33,170.22,62.2624]
[1747420103597,5.8699,170.29,170.25,5.8711]
[1747420103802,60.52,170.28,170.22,4.0006]
[1747420104701,60.52,170.28,170.26,5.8706]
[1747420105001,60.52,170.32,170.23,60.54]
[1747420105303,60.52,170.32,170.31,5.8691]
[1747420105502,60.52,170.32,170.23,77.70328204]
[1747420105909,60.52,170.32,170.3,5.8692]
[1747420106205,60.52,170.32,170.23,77.70328204]
[1747420106403,60.52,170.32,170.31,5.8691]
[1747420106706,60.52,170.36,170.27,60.56]
[1747420106904,60.56,170.37,170.28,60.56]
[1747420107208,60.56,170.37,170.29,2.0274]
[1747420108000,60.56,170.37,170.3,3.7331]
[1747420109008,60.56,170.37,170.33,5.8682]
[1747420109204,60.56,170.37,170.3,3.7331]
[1747420109503,60.56,170.37,170.34,5.8681]
[1747420109802,60.52,170.38,170.3,3.7331]
[1747420110110,60.52,170.38,170.35,5.8674]
[1747420110303,60.52,170.38,170.3,64.2931]
[1747420111307,60.52,170.38,170.35,5.8675]
[1747420112007,60.52,170.38,170.3,64.2931]
[1747420112309,60.52,170.41,170.3,64.2931]
[1747420112508,60.52,170.41,170.39,5.8662]
[1747420112803,60.52,170.41,170.33,60.54]
[1747420113304,60.52,170.41,170.38,5.8665]
[1747420113704,60.52,170.41,170.33,60.54]
[1747420113901,60.54,170.42,170.33,60.54]
[1747420114506,121.02,170.42,170.4,5.866]
[1747420115008,121.02,170.42,170.39,5.8663]
[1747420115308,121.02,170.42,170.34,60.46]
[1747420115505,5.8659,170.41,170.34,60.46]
[1747420115705,121.02,170.42,170.34,60.46]
[1747420116200,121.02,170.42,170.39,5.8662]
[1747420117405,126.8854,170.42,170.38,5.8666]
[1747420117714,121.02,170.42,170.33,60.54]
[1747420117917,126.8855,170.42,170.38,5.8667]
[1747420118316,5.8657,170.41,170.37,5.8669]
[1747420119218,121.02,170.42,170.31,60.54]
[1747420119712,5.8665,170.39,170.31,60.54]
[1747420119909,60.42,170.38,170.31,60.54]
[1747420121917,120.96,170.38,170.3,1.8401]
[1747420122415,5.8678,170.35,170.31,5.869]
[1747420122607,120.96,170.38,170.3,1.8401]
[1747420122917,120.96,170.38,170.32,5.8687]
[1747420123113,120.96,170.38,170.25,60.54]
[1747420123317,120.96,170.38,170.23,17.16328204]
[1747420123515,138.12328204,170.38,170.23,60.54]
[1747420124520,5.8694,170.31,170.27,5.8705]
[1747420124710,121.06,170.3,170.2,60.54]
[1747420125111,5.8699,170.29,170.25,5.8711]
[1747420125508,5.8699,170.29,170.2,60.54]
[1747420125716,121.06,170.3,170.2,60.54]
[1747420126309,121.06,170.3,170.28,5.87]
[1747420127013,121.06,170.3,170.2,60.54]
[1747420127417,121.06,170.3,170.27,5.8704]
[1747420127612,121.06,170.3,170.2,60.54]
[1747420128521,126.9295,170.3,170.26,5.8706]
[1747420129723,126.9295,170.3,170.25,5.8711]
[1747420130023,126.9295,170.3,170.2,60.54]
[1747420130218,121.06,170.3,170.24,5.8715]
[1747420130725,121.06,170.3,170.19,64.4658]
[1747420131822,5.8708,170.27,170.23,5.8717]
[1747420132120,121.06,170.26,170.19,64.4658]
[1747420132321,60.5,170.26,170.19,64.4658]
[1747420133022,60.5,170.26,170.25,5.8712]
[1747420133522,5.41117364,170.35,170.19,64.4658]
[1747420133720,120.98,170.34,170.2,60.48]
[1747420133925,5.8689,170.32,170.2,60.48]
[1747420134225,120.98,170.34,170.2,72.2256]
[1747420134420,5.8685,170.33,170.2,89.38888204]
[1747420135322,5.8689,170.32,170.2,89.38888204]
[1747420135923,120.98,170.34,170.2,28.90888204]
[1747420136222,138.14328204,170.34,170.19,64.4658]
[1747420136417,138.14328204,170.34,170.23,5.8717]
[1747420136822,5.8708,170.27,170.23,5.8717]
[1747420137020,121.1,170.26,170.23,5.8717]
[1747420137623,121.1,170.26,170.24,5.8714]
[1747420137818,121.1,170.26,170.19,64.4658]
[1747420138019,121.1,170.26,170.25,5.8712]
[1747420138714,60.6,170.26,170.25,5.8712]
[1747420140127,60.6,170.26,170.24,5.8714]
[1747420140828,60.6,170.26,170.23,5.8718]
[1747420141827,66.4709,170.26,170.23,5.8718]
[1747420142027,60.6,170.26,170.23,5.8718]
[1747420143023,60.6,170.26,170.24,5.8714]
[1747420143926,60.5,170.25,170.2,5.8727]
[1747420144327,60.5,170.25,170.17,1.8802]
[1747420144521,61.66,170.36,170.19,17.16328204]
[1747420144727,61.66,170.36,170.2,60.5]
[1747420144929,5.8689,170.32,170.2,60.5]
[1747420145333,61.66,170.31,170.2,60.5]
[1747420146031,61.66,170.31,170.28,5.87]
[1747420146231,61.66,170.31,170.2,60.5]
[1747420146928,61.66,170.31,170.21,11.7449]
[1747420147127,61.66,170.31,170.3,5.8695]
[1747420147931,122.16,170.33,170.31,5.8691]
[1747420148930,122.16,170.33,170.22,2.0275]
[1747420150329,122.16,170.33,170.24,5.8715]
[1747420150528,122.16,170.33,170.22,2.0275]
[1747420150730,5.8707,170.27,170.22,7.8997]
[1747420150933,61.6,170.27,170.22,7.8997]
[1747420151433,61.6,170.27,170.21,5.8726]
[1747420151829,5.8714,170.25,170.21,5.8726]
[1747420152028,5.8714,170.25,170.19,60.5]
[1747420153632,5.8714,170.25,170.22,5.8722]
[1747420154838,5.8716,170.24,170.22,5.8722]
[1747420155037,61.6,170.27,170.22,5.8722]
[1747420155235,5.8714,170.25,170.22,5.8722]
[1747420155937,5.871,170.26,170.23,5.8718]
[1747420156132,61.6,170.27,170.19,60.5]
[1747420157142,67.4708,170.27,170.24,5.8715]
[1747420157940,5.8709,170.26,170.23,5.8718]
[1747420158334,61.6,170.27,170.22,5.8722]
[1747420158335,5.8714,170.25,170.22,5.8722]
[1747420158536,5.8714,170.25,170.19,60.5]
[1747420159241,61.6,170.27,170.19,60.5]
[1747420159646,5.8718,170.24,170.21,5.8723]
[1747420160337,5.872,170.23,170.21,5.8723]
[1747420160539,61.6,170.27,170.21,5.8723]
[1747420160846,5.8718,170.24,170.21,5.8723]
[1747420161943,5.8712,170.25,170.18,1.9657]
[1747420162340,61.6,170.27,170.18,1.9657]
[1747420162542,5.8716,170.24,170.18,1.9657]
[1747420163140,5.8714,170.25,170.22,5.8722]
[1747420163749,61.6,170.27,170.22,5.8722]
[1747420164049,60.5,170.28,170.2,61.16]
[1747420164250,121.6,170.28,170.2,61.16]
[1747420166050,121.6,170.28,170.27,5.8705]
[1747420166950,67.0293,170.31,170.28,5.8701]
[1747420167151,5.46001576,170.33,170.19,61.1]
[1747420167348,61.02,170.32,170.22,17.16328204]
[1747420167548,61.02,170.32,170.3,5.8694]
[1747420168556,61.02,170.32,170.31,5.8691]
[1747420169246,5.46001576,170.33,170.32,5.8688]
[1747420169640,7.28002102,170.36,170.35,5.8678]
[1747420171553,60.98,170.38,170.37,5.8671]
[1747420172554,60.9,170.41,170.39,5.8662]
[1747420172759,60.88,170.41,170.39,5.8662]
[1747420174163,61.14,170.42,170.33,1.9273]
[1747420174959,61.14,170.42,170.34,3.8755]
[1747420175360,5.866,170.4,170.37,5.867]
[1747420175659,61.14,170.42,170.37,5.867]
[1747420175860,5.8659,170.41,170.37,5.867]
[1747420176462,5.8659,170.41,170.34,3.8755]
[1747420176463,5.8659,170.41,170.38,5.8667]
[1747420177062,67.0055,170.42,170.39,5.8663]
[1747420177856,61.14,170.42,170.4,5.866]
[1747420178161,61.14,170.42,170.34,3.8755]
[1747420178460,61.14,170.42,170.4,5.8657]
[1747420178962,60.74,170.43,170.4,5.8657]
[1747420179667,66.6051,170.43,170.4,5.8657]
[1747420179861,66.6051,170.43,170.39,5.8662]
[1747420180564,66.6051,170.43,170.4,5.8659]
[1747420182063,60.74,170.43,170.42,5.8653]
[1747420182260,60.74,170.43,170.34,3.8755]
[1747420182658,60.74,170.43,170.41,5.8655]
[1747420184361,60.74,170.43,170.34,3.8755]
[1747420184862,5.8663,170.4,170.34,3.8755]
[1747420185265,60.74,170.43,170.34,3.8755]
[1747420185461,5.8655,170.42,170.39,5.8662]
[1747420186060,5.8655,170.42,170.34,3.8755]
[1747420187566,5.8655,170.42,170.39,5.8662]
[1747420187767,60.74,170.43,170.34,3.8755]
[1747420188060,60.74,170.43,170.35,60.52]
[1747420188267,60.74,170.43,170.41,5.8654]
[1747420189567,66.605,170.43,170.4,5.8659]
[1747420189868,60.74,170.43,170.34,3.8755]
[1747420190566,5.8654,170.42,170.34,3.8755]
[1747420191073,5.8654,170.42,170.39,5.8661]
[1747420191267,66.6051,170.43,170.34,3.8755]
[1747420191571,60.74,170.43,170.42,5.8653]
[1747420192167,61.12,170.44,170.43,5.865]
[1747420192369,60.4,170.45,170.37,121.48]
[1747420192765,567.8,170.47,170.37,121.48]
[1747420192964,60.38,170.46,170.37,121.48]
[1747420193769,60.38,170.46,170.44,5.8645]
[1747420194567,60.38,170.46,170.37,121.48]
[1747420195071,5.8645,170.45,170.37,121.48]
[1747420195570,60.38,170.46,170.37,121.48]
[1747420195763,66.2441,170.46,170.37,121.48]
[1747420195964,60.38,170.46,170.37,121.48]
[1747420196169,66.244,170.46,170.43,5.8649]
[1747420196467,60.38,170.46,170.37,121.48]
[1747420196662,60.38,170.46,170.37,61.1]
[1747420196863,60.38,170.46,170.4,5.8658]
[1747420197473,5.8648,170.44,170.41,5.8656]
[1747420198274,5.8651,170.43,170.41,5.8656]
[1747420198573,60.38,170.46,170.41,5.8656]
[1747420198774,5.8648,170.44,170.42,5.8653]
[1747420198974,5.8648,170.44,170.37,61.1]
[1747420199475,5.8648,170.44,170.41,5.8655]
[1747420199774,60.38,170.46,170.41,5.8655]
[1747420200475,5.8651,170.43,170.41,5.8655]
[1747420200672,60.38,170.46,170.41,5.8655]
[1747420200872,60.38,170.46,170.42,5.8653]
[1747420201074,60.38,170.46,170.37,61.1]
[1747420201578,5.8645,170.45,170.37,61.1]
[1747420201875,60.38,170.47,170.37,71.90731613]
[1747420202077,120.54,170.47,170.37,71.90731613]
[1747420202374,126.4038,170.47,170.37,71.90731613]
[1747420202568,120.54,170.47,170.37,61.1]
[1747420203276,10.80731613,170.46,170.34,3.8755]
[1747420203485,10.80731613,170.43,170.33,62.2873]
[1747420203779,120.68,170.42,170.33,1.9273]
[1747420204167,120.68,170.42,170.31,60.36]
[1747420204372,1.904,170.41,170.31,60.36]
[1747420204775,10.80731613,170.4,170.3,3.7915]
[1747420204966,5.8683,170.34,170.31,5.8691]
[1747420205171,60.5,170.35,170.28,5.46001576]
[1747420206079,66.368,170.35,170.32,5.8688]
[1747420206279,60.5,170.35,170.28,5.46001576]
[1747420206779,60.5,170.35,170.23,1.9518]
[1747420206980,1.899,170.34,170.23,3.12668104]
[1747420207678,5.8692,170.31,170.26,5.8707]
[1747420207879,121.04,170.3,170.23,3.12668104]
[1747420208377,60.68,170.3,170.24,62.3504]
[1747420208578,60.68,170.3,170.29,5.8698]
[1747420208779,60.68,170.3,170.24,62.3504]
[1747420209380,60.68,170.3,170.24,60.38]
[1747420209990,60.68,170.3,170.26,5.8705]
[1747420210585,66.5497,170.3,170.26,5.8705]
[1747420210785,60.68,170.3,170.25,5.8711]
[1747420211086,60.38,170.29,170.25,5.8711]
[1747420211285,60.38,170.29,170.24,5.8714]
[1747420211490,60.38,170.29,170.21,60.38]
[1747420211792,60.38,170.29,170.27,5.8705]
[1747420211983,60.38,170.29,170.21,60.38]
[1747420212387,60.38,170.29,170.27,5.8702]
[1747420212688,60.38,170.29,170.21,60.38]
[1747420212878,60.54,170.3,170.28,5.8702]
[1747420213083,60.54,170.3,170.21,77.69062919]
[1747420213278,120.96,170.33,170.21,77.69062919]
[1747420213483,120.96,170.33,170.3,5.8692]
[1747420213682,120.96,170.33,170.22,60.58]
[1747420214186,5.8689,170.32,170.28,5.8699]
[1747420214390,120.96,170.33,170.22,60.58]
[1747420214690,5.8693,170.31,170.27,5.8705]
[1747420215290,5.8697,170.3,170.26,5.8708]
[1747420215593,120.92,170.29,170.21,60.4]
[1747420216495,120.92,170.29,170.26,5.8705]
[1747420216900,120.92,170.29,170.27,5.8704]
[1747420217099,120.92,170.29,170.21,60.4]
[1747420217389,120.92,170.29,170.27,5.8704]
[1747420218590,120.92,170.29,170.21,60.4]
[1747420218789,120.92,170.29,170.2,3.8855]
[1747420218986,5.8703,170.28,170.2,3.8855]
[1747420219192,120.92,170.29,170.2,3.8855]
[1747420219489,60.4,170.29,170.2,3.8855]
[1747420219694,60.4,170.28,170.2,3.8855]
[1747420219994,66.2704,170.28,170.2,3.8855]
[1747420220182,60.4,170.28,170.23,5.8716]
[1747420220387,60.4,170.28,170.2,3.8855]
[1747420220687,5.8713,170.25,170.21,5.8726]
[1747420220997,126.6716,170.24,170.17,1.8479]
[1747420221295,120.84,170.23,170.2,5.8726]
[1747420221497,126.7121,170.23,170.17,1.8479]
[1747420221694,120.84,170.23,170.19,5.873]
[1747420222494,120.84,170.23,170.2,5.8729]
[1747420222993,5.8724,170.22,170.19,5.8732]
[1747420223196,120.84,170.23,170.14,1.8833]
[1747420223795,126.7119,170.23,170.14,1.8833]
[1747420223998,120.84,170.23,170.14,1.8833]
[1747420224998,120.84,170.23,170.21,5.8724]
[1747420225689,120.84,170.23,170.2,5.8728]
[1747420225889,120.84,170.23,170.14,1.8833]
[1747420226991,120.84,170.23,170.11,2.0291]
[1747420227392,1.9981,170.22,170.11,2.0291]
[1747420228098,5.8729,170.21,170.17,5.8737]
[1747420228397,5.8729,170.21,170.11,2.0291]
[1747420228698,1.9981,170.22,170.11,2.0291]
[1747420229103,7.8706,170.22,170.11,2.0291]
[1747420229403,1.9981,170.22,170.11,2.0291]
[1747420229601,5.8729,170.21,170.11,2.0291]
[1747420230306,5.8731,170.2,170.16,5.874]
[1747420230603,120.84,170.19,170.16,5.874]
[1747420231294,120.84,170.19,170.11,2.0291]
[1747420231997,120.84,170.19,170.17,5.8739]
[1747420232300,120.84,170.19,170.11,2.0291]
[1747420232496,60.42,170.19,170.18,5.8736]
[1747420233103,60.42,170.22,170.21,5.8726]
[1747420233301,120.78,170.22,170.21,5.8726]
[1747420233504,60.36,170.22,170.21,5.8726]
[1747420234103,532.15065021,170.34,170.18,60.42]
[1747420234298,60.42,170.28,170.19,1.8592]
[1747420234605,60.42,170.28,170.27,5.8705]
[1747420235402,60.42,170.28,170.26,5.8707]
[1747420235602,60.42,170.28,170.19,1.8592]
[1747420237108,5.8709,170.26,170.19,1.8592]
[1747420237505,66.4509,170.26,170.19,1.8592]
[1747420237700,60.58,170.26,170.19,1.8592]
[1747420238101,60.58,170.26,170.11,11.7516]
[1747420238405,5.8717,170.24,170.2,5.8727]
[1747420238811,5.8717,170.24,170.21,5.8725]
[1747420240199,5.8713,170.25,170.22,5.8722]
[1747420240812,60.58,170.26,170.16,60.42]
[1747420241913,60.58,170.26,170.25,5.8712]
[1747420245120,60.58,170.26,170.24,5.8714]
[1747420246423,60.58,170.26,170.23,5.8718]
[1747420246614,60.58,170.26,170.2,60.42]
[1747420246815,60.58,170.26,170.24,5.8713]
[1747420248125,60.58,170.26,170.2,60.42]
[1747420248521,66.4509,170.26,170.2,60.42]
[1747420248717,60.58,170.26,170.19,2.0188]
[1747420249221,60.58,170.26,170.21,5.8723]
[1747420249424,60.58,170.26,170.19,2.0188]
[1747420249723,5.8716,170.24,170.21,5.8725]
[1747420249920,60.58,170.26,170.19,2.0188]
[1747420250928,5.8714,170.25,170.22,5.8722]
[1747420251224,60.58,170.26,170.19,2.0188]
[1747420251423,66.4509,170.26,170.23,5.8716]
[1747420253426,5.8709,170.26,170.23,5.8716]
[1747420253721,60.22,170.25,170.23,5.8716]
[1747420254423,60.22,170.25,170.24,5.8715]
[1747420255126,120.6,170.28,170.2,60.22]
[1747420255327,120.6,170.28,170.2,71.04596964]
[1747420255625,120.6,170.28,170.26,5.8707]
[1747420255823,120.58,170.28,170.26,5.8707]
[1747420256027,60.42,170.28,170.2,71.04596964]
[1747420256230,60.42,170.28,170.26,5.8708]
[1747420256430,60.42,170.28,170.2,71.04596964]
[1747420256922,60.42,170.28,170.27,5.8705]
[1747420257122,60.42,170.28,170.2,71.04596964]
[1747420258026,60.42,170.28,170.26,5.8706]
[1747420258227,60.42,170.28,170.2,71.04596964]
[1747420258527,60.42,170.28,170.26,5.8707]
[1747420259128,60.42,170.28,170.26,5.8706]
[1747420259428,60.42,170.28,170.2,71.04596964]
[1747420259621,66.2902,170.28,170.25,5.871]
[1747420259820,60.42,170.28,170.2,71.04596964]
[1747420260125,60.42,170.28,170.25,5.871]
[1747420260332,60.42,170.28,170.2,71.04596964]
[1747420261015,60.42,170.28,170.2,60.22]
[1747420261627,5.871,170.26,170.2,60.22]
[1747420262133,5.8708,170.27,170.2,60.22]
[1747420262431,60.42,170.28,170.2,60.22]
[1747420262831,60.42,170.28,170.26,5.8706]
[1747420263032,60.42,170.28,170.2,60.22]